fUST/lending_fUST_20260524
["ID","MTS","AMOUNT","RATE_DAILY","PERIOD"]
[422877773,1779559840000,-1177.56,8.493e-05,2]
[422877756,1779559840000,-500.0,8.493e-05,2]
[422877809,1779559840000,-300.0,8.662e-05,2]
[422877810,1779559840000,-300.0,8.662e-05,2]
[422877813,1779559840000,-300.0,8.662e-05,2]
[422877886,1779559840000,-500.0,8.767e-05,2]
[422877892,1779559840000,-500.0,8.767e-05,2]
[422877896,1779559840000,-251.52429179,8.767e-05,2]
[422877888,1779559840000,-569.47,8.767e-05,2]
[422877895,1779559840000,-500.0,8.767e-05,2]
[422877894,1779559840000,-2020.84,8.767e-05,2]
[422877890,1779559840000,-500.0,8.767e-05,2]
[422877884,1779559840000,-839.33,8.767e-05,2]
[422877893,1779559840000,-918.12,8.767e-05,2]
[422877889,1779559840000,-500.0,8.767e-05,2]
[422877891,1779559840000,-10065.79,8.767e-05,2]
[422877897,1779559840000,-500.0,8.767e-05,2]
[422877908,1779559840000,-152.0,8.991e-05,7]
[422877882,1779559840000,-1147.84,8.767e-05,2]
[422877904,1779559840000,-600.0,8.834e-05,2]
[422877909,1779559840000,-152.0,8.991e-05,7]
[422877907,1779559840000,-150.308,8.97e-05,2]
[422877898,1779559840000,-500.0,8.767e-05,2]
[422877906,1779559840000,-715.954,8.97e-05,2]
[422877899,1779559840000,-596.72,8.767e-05,2]
[422877900,1779559840000,-500.0,8.767e-05,2]
[422877902,1779559840000,-500.0,8.767e-05,2]
[422877901,1779559840000,-1726.37,8.767e-05,2]
[422877910,1779559840000,-317.55602486,8.997e-05,2]
[422877913,1779559840000,-874.16,9.041e-05,2]
[422877912,1779559840000,-500.0,9.041e-05,2]
[422877911,1779559840000,-2143.29886824,9e-05,2]
[422877825,1779559840000,-160.0,8.701e-05,2]
[422877905,1779559840000,-480.0,8.929e-05,2]
[422877880,1779559840000,-500.0,8.767e-05,2]
[422877903,1779559840000,-556.941387,8.825e-05,2]
[422877866,1779559840000,-500.0,8.767e-05,2]
[422877876,1779559840000,-500.0,8.767e-05,2]
[422877827,1779559840000,-766.63845589,8.701e-05,2]
[422877815,1779559840000,-300.0,8.662e-05,2]
[422877817,1779559840000,-300.0,8.662e-05,2]
[422877819,1779559840000,-300.0,8.662e-05,2]
[422877831,1779559840000,-160.0,8.701e-05,2]
[422877833,1779559840000,-160.0,8.701e-05,2]
[422877835,1779559840000,-317.55602486,8.745e-05,2]
[422877837,1779559840000,-500.0,8.767e-05,2]
[422877839,1779559840000,-874.16,8.767e-05,2]
[422877841,1779559840000,-500.0,8.767e-05,2]
[422877847,1779559840000,-500.0,8.767e-05,2]
[422877848,1779559840000,-578.75,8.767e-05,2]
[422877845,1779559840000,-1655.39,8.767e-05,2]
[422877829,1779559840000,-161.73153808,8.701e-05,2]
[422877870,1779559840000,-1782.94,8.767e-05,2]
[422877843,1779559840000,-500.0,8.767e-05,2]
[422877860,1779559840000,-1046.6854,8.767e-05,2]
[422877868,1779559840000,-543.6,8.767e-05,2]
[422877878,1779559840000,-500.0,8.767e-05,2]
[422877864,1779559840000,-707.49,8.767e-05,2]
[422877872,1779559840000,-500.0,8.767e-05,2]
[422877859,1779559840000,-500.0,8.767e-05,2]
[422877874,1779559840000,-1177.56,8.767e-05,2]
[422877856,1779559840000,-638.9,8.767e-05,2]
[422877854,1779559840000,-1585.91,8.767e-05,2]
[422877853,1779559840000,-500.0,8.767e-05,2]
[422877851,1779559840000,-500.0,8.767e-05,2]
[422877862,1779559840000,-500.0,8.767e-05,2]
[422877951,1779559841000,-1726.37,9.041e-05,2]
[422877952,1779559841000,-500.0,9.041e-05,2]
[422877959,1779559841000,-556.941387,9.168e-05,2]
[422877954,1779559841000,-646.0,9.064e-05,2]
[422877953,1779559841000,-578.753,9.064e-05,2]
[422877949,1779559841000,-596.72,9.041e-05,2]
[422877938,1779559841000,-500.0,9.041e-05,2]
[422877960,1779559841000,-500.0,9.209e-05,2]
[422877961,1779559841000,-317.55602486,9.248e-05,2]
[422877950,1779559841000,-500.0,9.041e-05,2]
[422877941,1779559841000,-500.0,9.041e-05,2]
[422877955,1779559841000,-185.0,9.064e-05,2]
[422877947,1779559841000,-500.0,9.041e-05,2]
[422877962,1779559841000,-1745.0323261,9.286e-05,2]
[422877958,1779559841000,-10000.0,9.123e-05,2]
[422877964,1779559841000,-874.16,9.315e-05,2]
[422877956,1779559841000,-443.0,9.064e-05,2]
[422877963,1779559841000,-500.0,9.315e-05,2]
[422877967,1779559841000,-3896.36011306,9.315e-05,2]
[422877965,1779559841000,-636.09,9.315e-05,2]
[422877966,1779559841000,-809.79768736,9.315e-05,2]
[422877972,1779559841000,-500.0,9.315e-05,2]
[422877971,1779559841000,-578.75,9.315e-05,2]
[422877969,1779559841000,-1655.39,9.315e-05,2]
[422877968,1779559841000,-500.0,9.315e-05,2]
[422877970,1779559841000,-500.0,9.315e-05,2]
[422877974,1779559841000,-1585.91,9.315e-05,2]
[422877973,1779559841000,-500.0,9.315e-05,2]
[422877975,1779559841000,-638.9,9.315e-05,2]
[422877957,1779559841000,-500.0,9.1e-05,2]
[422877939,1779559841000,-569.47,9.041e-05,2]
[422877915,1779559841000,-184.1014,9.041e-05,2]
[422877944,1779559841000,-918.12,9.041e-05,2]
[422877976,1779559841000,-500.0,9.315e-05,2]
[422877914,1779559841000,-500.0,9.041e-05,2]
[422877920,1779559841000,-500.0,9.041e-05,2]
[422877916,1779559841000,-500.0,9.041e-05,2]
[422877919,1779559841000,-578.75,9.041e-05,2]
[422877917,1779559841000,-1655.39,9.041e-05,2]
[422877918,1779559841000,-500.0,9.041e-05,2]
[422877922,1779559841000,-1585.91,9.041e-05,2]
[422877932,1779559841000,-1177.56,9.041e-05,2]
[422877934,1779559841000,-500.0,9.041e-05,2]
[422877933,1779559841000,-500.0,9.041e-05,2]
[422877921,1779559841000,-500.0,9.041e-05,2]
[422877923,1779559841000,-638.9,9.041e-05,2]
[422877924,1779559841000,-500.0,9.041e-05,2]
[422877925,1779559841000,-1046.6854,9.041e-05,2]
[422877931,1779559841000,-500.0,9.041e-05,2]
[422877929,1779559841000,-543.6,9.041e-05,2]
[422877926,1779559841000,-500.0,9.041e-05,2]
[422877927,1779559841000,-707.49,9.041e-05,2]
[422877930,1779559841000,-1782.94,9.041e-05,2]
[422877928,1779559841000,-500.0,9.041e-05,2]
[422877935,1779559841000,-500.0,9.041e-05,2]
[422877937,1779559841000,-839.33,9.041e-05,2]
[422877936,1779559841000,-1147.84,9.041e-05,2]
[422877942,1779559841000,-10065.79,9.041e-05,2]
[422877943,1779559841000,-500.0,9.041e-05,2]
[422877946,1779559841000,-500.0,9.041e-05,2]
[422877948,1779559841000,-500.0,9.041e-05,2]
[422877940,1779559841000,-500.0,9.041e-05,2]
[422877945,1779559841000,-2020.84,9.041e-05,2]
[422877985,1779559841000,-500.0,9.315e-05,2]
[422878032,1779559841000,-400.665554,9.5e-05,2]
[422877977,1779559841000,-1046.6854,9.315e-05,2]
[422878015,1779559841000,-151.0,9.5e-05,2]
[422878013,1779559841000,-151.0,9.5e-05,2]
[422878014,1779559841000,-151.0,9.5e-05,2]
[422878020,1779559841000,-151.0,9.5e-05,2]
[422878021,1779559841000,-152.296794,9.5e-05,2]
[422878016,1779559841000,-151.0,9.5e-05,2]
[422878017,1779559841000,-151.0,9.5e-05,2]
[422878024,1779559841000,-151.0,9.5e-05,2]
[422878023,1779559841000,-151.0,9.5e-05,2]
[422878022,1779559841000,-151.0,9.5e-05,2]
[422878019,1779559841000,-151.0,9.5e-05,2]
[422878018,1779559841000,-151.0,9.5e-05,2]
[422878025,1779559841000,-151.0,9.5e-05,2]
[422878028,1779559841000,-151.0,9.5e-05,2]
[422878026,1779559841000,-151.0,9.5e-05,2]
[422878027,1779559841000,-151.0,9.5e-05,2]
[422878037,1779559841000,-318.883722,9.5e-05,2]
[422878036,1779559841000,-318.883722,9.5e-05,2]
[422878029,1779559841000,-151.0,9.5e-05,2]
[422878038,1779559841000,-318.883722,9.5e-05,2]
[422878030,1779559841000,-151.0,9.5e-05,2]
[422878033,1779559841000,-400.665554,9.5e-05,2]
[422878031,1779559841000,-151.0,9.5e-05,2]
[422878034,1779559841000,-400.665554,9.5e-05,2]
[422878041,1779559841000,-317.55602486,9.5e-05,2]
[422878040,1779559841000,-318.883722,9.5e-05,2]
[422878039,1779559841000,-186.24648,9.5e-05,2]
[422877987,1779559841000,-1147.84,9.315e-05,2]
[422878042,1779559841000,-151.0,9.5e-05,2]
[422878005,1779559841000,-50143.48271,9.472e-05,2]
[422878008,1779559841000,-151.0,9.5e-05,2]
[422878035,1779559841000,-400.665554,9.5e-05,2]
[422878001,1779559841000,-500.0,9.315e-05,2]
[422877984,1779559841000,-500.0,9.315e-05,2]
[422878000,1779559841000,-596.72,9.315e-05,2]
[422877980,1779559841000,-543.6,9.315e-05,2]
[422877978,1779559841000,-707.49,9.315e-05,2]
[422877979,1779559841000,-500.0,9.315e-05,2]
[422877983,1779559841000,-1177.56,9.315e-05,2]
[422877981,1779559841000,-1782.94,9.315e-05,2]
[422877982,1779559841000,-500.0,9.315e-05,2]
[422877989,1779559841000,-500.0,9.315e-05,2]
[422877998,1779559841000,-500.0,9.315e-05,2]
[422877988,1779559841000,-839.33,9.315e-05,2]
[422877990,1779559841000,-569.47,9.315e-05,2]
[422877995,1779559841000,-918.12,9.315e-05,2]
[422877997,1779559841000,-500.0,9.315e-05,2]
[422877992,1779559841000,-500.0,9.315e-05,2]
[422877986,1779559841000,-500.0,9.315e-05,2]
[422878002,1779559841000,-1726.37,9.315e-05,2]
[422877994,1779559841000,-500.0,9.315e-05,2]
[422878006,1779559841000,-2221.78218617,9.5e-05,2]
[422878004,1779559841000,-2067.16085837,9.397e-05,2]
[422878003,1779559841000,-500.0,9.315e-05,2]
[422878011,1779559841000,-151.0,9.5e-05,2]
[422877999,1779559841000,-500.0,9.315e-05,2]
[422878012,1779559841000,-151.0,9.5e-05,2]
[422878009,1779559841000,-151.0,9.5e-05,2]
[422877996,1779559841000,-2020.84,9.315e-05,2]
[422877991,1779559841000,-500.0,9.315e-05,2]
[422877993,1779559841000,-10065.79,9.315e-05,2]
[422878010,1779559841000,-151.0,9.5e-05,2]
[422878007,1779559841000,-267542.58070944,9.5e-05,2]
[422878088,1779559842000,-545.79675871,9.705e-05,2]
[422878090,1779559842000,-500.0,9.757e-05,2]
[422878087,1779559842000,-500.0,9.589e-05,2]
[422878086,1779559842000,-492.25,9.589e-05,2]
[422878080,1779559842000,-918.12,9.589e-05,2]
[422878083,1779559842000,-500.0,9.589e-05,2]
[422878079,1779559842000,-500.0,9.589e-05,2]
[422878089,1779559842000,-720.0,9.718e-05,2]
[422878081,1779559842000,-2020.84,9.589e-05,2]
[422878074,1779559842000,-500.0,9.589e-05,2]
[422878084,1779559842000,-282.58611587,9.589e-05,2]
[422878069,1779559842000,-500.0,9.589e-05,2]
[422878077,1779559842000,-500.0,9.589e-05,2]
[422878091,1779559842000,-556.941387,9.853e-05,2]
[422878082,1779559842000,-500.0,9.589e-05,2]
[422878103,1779559842000,-707.49,9.863e-05,2]
[422878092,1779559842000,-500.0,9.863e-05,2]
[422878094,1779559842000,-1655.39,9.863e-05,2]
[422878095,1779559842000,-500.0,9.863e-05,2]
[422878093,1779559842000,-874.16,9.863e-05,2]
[422878101,1779559842000,-500.0,9.863e-05,2]
[422878100,1779559842000,-638.9,9.863e-05,2]
[422878097,1779559842000,-500.0,9.863e-05,2]
[422878105,1779559842000,-1782.94,9.863e-05,2]
[422878096,1779559842000,-578.75,9.863e-05,2]
[422878102,1779559842000,-1046.6854,9.863e-05,2]
[422878098,1779559842000,-500.0,9.863e-05,2]
[422878099,1779559842000,-1585.91,9.863e-05,2]
[422878104,1779559842000,-543.6,9.863e-05,2]
[422878107,1779559842000,-1177.56,9.863e-05,2]
[422878085,1779559842000,-596.72,9.589e-05,2]
[422878070,1779559842000,-500.0,9.589e-05,2]
[422878050,1779559842000,-556.941387,9.511e-05,2]
[422878078,1779559842000,-10065.79,9.589e-05,2]
[422878117,1779559842000,-10065.79,9.863e-05,2]
[422878051,1779559842000,-400.67659265,9.555e-05,2]
[422878052,1779559842000,-500.0,9.589e-05,2]
[422878043,1779559842000,-151.0,9.5e-05,2]
[422878045,1779559842000,-151.0,9.5e-05,2]
[422878044,1779559842000,-151.0,9.5e-05,2]
[422878046,1779559842000,-151.0,9.5e-05,2]
[422878048,1779559842000,-151.0,9.5e-05,2]
[422878049,1779559842000,-151.0,9.5e-05,2]
[422878047,1779559842000,-151.0,9.5e-05,2]
[422878053,1779559842000,-874.16,9.589e-05,2]
[422878060,1779559842000,-1585.91,9.589e-05,2]
[422878065,1779559842000,-543.6,9.589e-05,2]
[422878064,1779559842000,-707.49,9.589e-05,2]
[422878073,1779559842000,-839.33,9.589e-05,2]
[422878063,1779559842000,-1046.6854,9.589e-05,2]
[422878061,1779559842000,-638.9,9.589e-05,2]
[422878066,1779559842000,-1782.94,9.589e-05,2]
[422878056,1779559842000,-500.0,9.589e-05,2]
[422878054,1779559842000,-369.05,9.589e-05,2]
[422878055,1779559842000,-1655.39,9.589e-05,2]
[422878057,1779559842000,-578.75,9.589e-05,2]
[422878059,1779559842000,-500.0,9.589e-05,2]
[422878058,1779559842000,-500.0,9.589e-05,2]
[422878067,1779559842000,-500.0,9.589e-05,2]
[422878072,1779559842000,-1147.84,9.589e-05,2]
[422878071,1779559842000,-500.0,9.589e-05,2]
[422878068,1779559842000,-1177.56,9.589e-05,2]
[422878075,1779559842000,-569.47,9.589e-05,2]
[422878076,1779559842000,-500.0,9.589e-05,2]
[422878062,1779559842000,-500.0,9.589e-05,2]
[422878108,1779559842000,-500.0,9.863e-05,2]
[422878185,1779559842000,-151.0,0.0001,2]
[422878119,1779559842000,-918.12,9.863e-05,2]
[422878151,1779559842000,-151.0,0.0001,2]
[422878153,1779559842000,-151.0,0.0001,2]
[422878155,1779559842000,-151.0,0.0001,2]
[422878157,1779559842000,-217.418585,0.0001,2]
[422878160,1779559842000,-400.665554,0.0001,2]
[422878158,1779559842000,-400.665554,0.0001,2]
[422878169,1779559842000,-151.0,0.0001,2]
[422878164,1779559842000,-318.883722,0.0001,2]
[422878163,1779559842000,-318.883722,0.0001,2]
[422878162,1779559842000,-400.665554,0.0001,2]
[422878167,1779559842000,-318.883722,0.0001,2]
[422878165,1779559842000,-318.883722,0.0001,2]
[422878168,1779559842000,-151.0,0.0001,2]
[422878161,1779559842000,-400.665554,0.0001,2]
[422878138,1779559842000,-151.0,0.0001,2]
[422878170,1779559842000,-151.0,0.0001,2]
[422878172,1779559842000,-151.0,0.0001,2]
[422878173,1779559842000,-151.0,0.0001,2]
[422878181,1779559842000,-151.0,0.0001,2]
[422878179,1779559842000,-177.8018764,0.0001,2]
[422878182,1779559842000,-151.0,0.0001,2]
[422878184,1779559842000,-151.0,0.0001,2]
[422878177,1779559842000,-151.0,0.0001,2]
[422878174,1779559842000,-151.0,0.0001,2]
[422878175,1779559842000,-151.0,0.0001,2]
[422878178,1779559842000,-151.0,0.0001,2]
[422878176,1779559842000,-151.0,0.0001,2]
[422878180,1779559842000,-151.0,0.0001,2]
[422878187,1779559842000,-278.227667,0.0001,2]
[422878109,1779559842000,-500.0,9.863e-05,2]
[422878171,1779559842000,-151.0,0.0001,2]
[422878149,1779559842000,-151.0,0.0001,2]
[422878186,1779559842000,-151.0,0.0001,2]
[422878135,1779559842000,-151.0,0.0001,2]
[422878137,1779559842000,-151.0,0.0001,2]
[422878110,1779559842000,-500.0,9.863e-05,2]
[422878118,1779559842000,-500.0,9.863e-05,2]
[422878112,1779559842000,-839.33,9.863e-05,2]
[422878111,1779559842000,-1147.84,9.863e-05,2]
[422878116,1779559842000,-500.0,9.863e-05,2]
[422878114,1779559842000,-569.47,9.863e-05,2]
[422878113,1779559842000,-500.0,9.863e-05,2]
[422878115,1779559842000,-500.0,9.863e-05,2]
[422878121,1779559842000,-500.0,9.863e-05,2]
[422878120,1779559842000,-2020.84,9.863e-05,2]
[422878122,1779559842000,-500.0,9.863e-05,2]
[422878123,1779559842000,-596.72,9.863e-05,2]
[422878126,1779559842000,-200.0,0.0001,2]
[422878125,1779559842000,-169.90262841,0.0001,10]
[422878106,1779559842000,-500.0,9.863e-05,2]
[422878131,1779559842000,-151.0,0.0001,2]
[422878124,1779559842000,-500.0,9.863e-05,2]
[422878136,1779559842000,-151.0,0.0001,2]
[422878133,1779559842000,-151.0,0.0001,2]
[422878147,1779559842000,-151.0,0.0001,2]
[422878143,1779559842000,-151.0,0.0001,2]
[422878145,1779559842000,-151.0,0.0001,2]
[422878132,1779559842000,-151.0,0.0001,2]
[422878134,1779559842000,-228.1696,0.0001,2]
[422878139,1779559842000,-241.049948,0.0001,2]
[422878141,1779559842000,-151.0,0.0001,2]
[422878129,1779559842000,-3538.27503354,0.0001,2]
[422878127,1779559842000,-6749.24770483,0.0001,2]
[422878130,1779559842000,-350.64305583,0.0001,2]
[422878140,1779559842000,-151.0,0.0001,2]
[422878128,1779559842000,-35704.0871195,0.0001,2]
[422878234,1779559843000,-569.47,0.00010136,2]
[422878225,1779559843000,-1782.94,0.00010136,2]
[422878226,1779559843000,-500.0,0.00010136,2]
[422878223,1779559843000,-707.49,0.00010136,2]
[422878221,1779559843000,-500.0,0.00010136,2]
[422878231,1779559843000,-1147.84,0.00010136,2]
[422878222,1779559843000,-1046.6854,0.00010136,2]
[422878232,1779559843000,-839.33,0.00010136,2]
[422878230,1779559843000,-500.0,0.00010136,2]
[422878229,1779559843000,-500.0,0.00010136,2]
[422878233,1779559843000,-500.0,0.00010136,2]
[422878224,1779559843000,-543.6,0.00010136,2]
[422878237,1779559843000,-500.0,0.00010136,2]
[422878249,1779559843000,-500.0,0.00010136,2]
[422878245,1779559843000,-2020.84,0.00010136,2]
[422878247,1779559843000,-500.0,0.00010136,2]
[422878239,1779559843000,-10065.79,0.00010136,2]
[422878252,1779559843000,-500.0,0.00010136,2]
[422878255,1779559843000,-3630.068774,0.000102,2]
[422878243,1779559843000,-918.12,0.00010136,2]
[422878241,1779559843000,-500.0,0.00010136,2]
[422878256,1779559843000,-6749.24770483,0.000102,2]
[422878251,1779559843000,-596.72,0.00010136,2]
[422878273,1779559843000,-318.883722,0.00010372,2]
[422878270,1779559843000,-400.665554,0.00010372,2]
[422878271,1779559843000,-400.665554,0.00010372,2]
[422878227,1779559843000,-1177.56,0.00010136,2]
[422878235,1779559843000,-500.0,0.00010136,2]
[422878228,1779559843000,-500.0,0.00010136,2]
[422878206,1779559843000,-2000.0,0.00010108,2]
[422878215,1779559843000,-500.0,0.00010136,2]
[422878275,1779559843000,-318.883722,0.00010372,2]
[422878195,1779559843000,-2000.0,0.00010108,2]
[422878194,1779559843000,-151.0,0.000101,2]
[422878197,1779559843000,-2000.0,0.00010108,2]
[422878200,1779559843000,-2000.0,0.00010108,2]
[422878196,1779559843000,-2000.0,0.00010108,2]
[422878198,1779559843000,-2000.0,0.00010108,2]
[422878199,1779559843000,-2000.0,0.00010108,2]
[422878188,1779559843000,-298.68,0.0001,30]
[422878189,1779559843000,-152.0,0.00010005,30]
[422878190,1779559843000,-450.0,0.00010008,3]
[422878192,1779559843000,-6749.24770483,0.000101,2]
[422878201,1779559843000,-2000.0,0.00010108,2]
[422878204,1779559843000,-2000.0,0.00010108,2]
[422878203,1779559843000,-2000.0,0.00010108,2]
[422878205,1779559843000,-2000.0,0.00010108,2]
[422878202,1779559843000,-2000.0,0.00010108,2]
[422878208,1779559843000,-2000.0,0.00010108,2]
[422878207,1779559843000,-2000.0,0.00010108,2]
[422878209,1779559843000,-2000.0,0.00010108,2]
[422878217,1779559843000,-500.0,0.00010136,2]
[422878213,1779559843000,-874.16,0.00010136,2]
[422878211,1779559843000,-151.0,0.00010132,2]
[422878216,1779559843000,-578.75,0.00010136,2]
[422878219,1779559843000,-1585.91,0.00010136,2]
[422878210,1779559843000,-177.0,0.00010108,2]
[422878218,1779559843000,-500.0,0.00010136,2]
[422878212,1779559843000,-500.0,0.00010136,2]
[422878214,1779559843000,-1655.39,0.00010136,2]
[422878220,1779559843000,-638.9,0.00010136,2]
[422878258,1779559843000,-456.6596809,0.0001021,2]
[422878277,1779559843000,-318.883722,0.00010372,2]
[422878262,1779559843000,-151.0,0.00010372,2]
[422878313,1779559843000,-11375.101883,0.00010372,2]
[422878312,1779559843000,-5767.550941,0.00010372,2]
[422878320,1779559843000,-151.0,0.00010406,2]
[422878322,1779559843000,-151.0,0.00010406,2]
[422878335,1779559843000,-500.0,0.0001041,2]
[422878319,1779559843000,-151.0,0.00010406,2]
[422878324,1779559843000,-151.0,0.00010406,2]
[422878328,1779559843000,-151.0,0.00010406,2]
[422878326,1779559843000,-151.0,0.00010406,2]
[422878329,1779559843000,-151.0,0.00010406,2]
[422878332,1779559843000,-500.0,0.0001041,2]
[422878330,1779559843000,-254.68864,0.00010406,2]
[422878333,1779559843000,-874.16,0.0001041,2]
[422878314,1779559843000,-6749.24770483,0.000104,2]
[422878334,1779559843000,-1655.39,0.0001041,2]
[422878338,1779559843000,-500.0,0.0001041,2]
[422878337,1779559843000,-523.42,0.0001041,2]
[422878340,1779559843000,-638.9,0.0001041,2]
[422878346,1779559843000,-1177.56,0.0001041,2]
[422878344,1779559843000,-1782.94,0.0001041,2]
[422878343,1779559843000,-543.6,0.0001041,2]
[422878339,1779559843000,-1585.91,0.0001041,2]
[422878347,1779559843000,-500.0,0.0001041,2]
[422878345,1779559843000,-500.0,0.0001041,2]
[422878341,1779559843000,-500.0,0.0001041,2]
[422878348,1779559843000,-500.0,0.0001041,2]
[422878342,1779559843000,-707.49,0.0001041,2]
[422878260,1779559843000,-6749.24770483,0.000103,2]
[422878336,1779559843000,-578.75,0.0001041,2]
[422878310,1779559843000,-16023.153348,0.00010372,2]
[422878331,1779559843000,-151.0,0.00010406,2]
[422878308,1779559843000,-160.0,0.00010372,2]
[422878306,1779559843000,-2127.342301,0.00010372,2]
[422878266,1779559843000,-400.665554,0.00010372,2]
[422878279,1779559843000,-318.883722,0.00010372,2]
[422878268,1779559843000,-400.665554,0.00010372,2]
[422878281,1779559843000,-151.0,0.00010372,2]
[422878284,1779559843000,-151.0,0.00010372,2]
[422878283,1779559843000,-168.493436,0.00010372,2]
[422878292,1779559843000,-151.0,0.00010372,2]
[422878294,1779559843000,-160.0,0.00010372,2]
[422878295,1779559843000,-546.806357,0.00010372,2]
[422878286,1779559843000,-151.0,0.00010372,2]
[422878288,1779559843000,-151.0,0.00010372,2]
[422878290,1779559843000,-151.0,0.00010372,2]
[422878301,1779559843000,-7537.981971,0.00010372,2]
[422878264,1779559843000,-151.0,0.00010372,2]
[422878304,1779559843000,-391.219214,0.00010372,2]
[422878302,1779559843000,-160.0,0.00010372,2]
[422878311,1779559843000,-160.0,0.00010372,2]
[422878309,1779559843000,-8091.576674,0.00010372,2]
[422878317,1779559843000,-151.0,0.00010406,2]
[422878315,1779559843000,-151.0,0.00010406,2]
[422878316,1779559843000,-151.0,0.00010406,2]
[422878307,1779559843000,-4094.684602,0.00010372,2]
[422878305,1779559843000,-160.0,0.00010372,2]
[422878300,1779559843000,-3848.990985,0.00010372,2]
[422878299,1779559843000,-160.0,0.00010372,2]
[422878297,1779559843000,-933.612715,0.00010372,2]
[422878303,1779559843000,-275.609607,0.00010372,2]
[422878318,1779559843000,-151.0,0.00010406,2]
[422878393,1779559844000,-176.692244,0.000106,2]
[422878392,1779559844000,-6749.24770483,0.000106,2]
[422878390,1779559844000,-192.623615,0.00010584,2]
[422878389,1779559844000,-159.64351418,0.00010548,2]
[422878386,1779559844000,-6749.24770483,0.000105,2]
[422878391,1779559844000,-185.974138,0.00010584,2]
[422878374,1779559844000,-4940.928346,0.00010424,2]
[422878376,1779559844000,-160.0,0.00010424,2]
[422878375,1779559844000,-9721.856693,0.00010424,2]
[422878377,1779559844000,-10520.886104,0.00010424,2]
[422878387,1779559844000,-151.0,0.000105,2]
[422878397,1779559844000,-400.665554,0.00010658,2]
[422878388,1779559844000,-162.90154508,0.00010548,2]
[422878399,1779559844000,-400.665554,0.00010658,2]
[422878410,1779559844000,-151.0,0.00010684,2]
[422878394,1779559844000,-239.42022,0.000106,2]
[422878398,1779559844000,-400.665554,0.00010658,2]
[422878395,1779559844000,-159.64351418,0.0001063,2]
[422878400,1779559844000,-400.665554,0.00010658,2]
[422878401,1779559844000,-318.883722,0.00010658,2]
[422878403,1779559844000,-318.883722,0.00010658,2]
[422878412,1779559844000,-151.0,0.00010684,2]
[422878404,1779559844000,-318.883722,0.00010658,2]
[422878402,1779559844000,-318.883722,0.00010658,2]
[422878414,1779559844000,-151.0,0.00010684,2]
[422878413,1779559844000,-151.0,0.00010684,2]
[422878405,1779559844000,-151.0,0.0001068,2]
[422878383,1779559844000,-160.0,0.00010476,2]
[422878396,1779559844000,-162.90154508,0.00010658,2]
[422878384,1779559844000,-626.026744,0.00010476,2]
[422878350,1779559844000,-1147.84,0.0001041,2]
[422878382,1779559844000,-1623.473836,0.00010476,2]
[422878349,1779559844000,-500.0,0.0001041,2]
[422878353,1779559844000,-569.47,0.0001041,2]
[422878351,1779559844000,-839.33,0.0001041,2]
[422878354,1779559844000,-500.0,0.0001041,2]
[422878357,1779559844000,-500.0,0.0001041,2]
[422878355,1779559844000,-500.0,0.0001041,2]
[422878352,1779559844000,-500.0,0.0001041,2]
[422878358,1779559844000,-918.12,0.0001041,2]
[422878359,1779559844000,-2020.84,0.0001041,2]
[422878356,1779559844000,-10065.79,0.0001041,2]
[422878361,1779559844000,-500.0,0.0001041,2]
[422878369,1779559844000,-151.0,0.00010424,2]
[422878362,1779559844000,-596.72,0.0001041,2]
[422878385,1779559844000,-1092.053489,0.00010476,2]